[Event "94th Tradewise Hastings Congress"]
[Site "Hastings"]
[Date "2018.12.29"]
[Round "2"]
[White "Spiegel, Stefan, Dr."]
[Black "Leenhouts, Koen"]
[Result "1-0"]
[ECO "B06"]
[WhiteElo "2124"]
[BlackElo "2470"]
[Annotator "ChessBase"]
[PlyCount "73"]
[EventDate "2018.12.28"]
[EventType "swiss"]
[EventCountry "ENG"]
[SourceTitle "playchess.com"]
[Source "ChessBase"]
[SourceQuality "1"]
[TimeControl "40/6000+30:3000+30"]

1. e4 {[%emt 0:00:00]} g6 {[%emt 0:00:00]} 2. d4 {[%emt 0:00:00]} Bg7 {[%emt 0:00:00]} 3. Nc3 {[%emt 0:00:34]} d6 {[%emt 0:00:14]} 4. g3 {[%emt 0:01:18]} Nd7 {[%emt 0:02:32]} 5. Bg2 {[%emt 0:00:39]} c5 {[%emt 0:00:54]} 6. Nge2 {[%emt 0:00:53]} Ngf6 {[%emt 0:01:13]} 7. h3 {[%emt 0:00:35]} O-O {[%emt 0:01:16]} 8. O-O {[%emt 0:00:45]} Rb8 {[%emt 0:03:13]} 9. a4 {[%emt 0:01:25]} b6 {[%emt 0:04:53]} 10. Be3 {[%emt 0:04:05]} Bb7 {[%emt 0:03:10]} 11. g4 {[%emt 0:06:57]} a6 {[%emt 0:13:38]} 12. Ng3 {[%emt 0:03:36]} Ne8 {[%emt 0:09:10]} 13. Re1 {[%emt 0:09:15]} Nc7 {[%emt 0:00:53]} 14. Nd5 {[%emt 0:08:27]} b5 {[%emt 0:08:58]} 15. c3 {[%emt 0:07:33]} bxa4 {[%emt 0:04:33]} 16. Nxc7 {[%emt 0:02:41]} Qxc7 {[%emt 0:00:11]} 17. Qxa4 {[%emt 0:00:23]} Rfc8 {[%emt 0:09:55]} 18. Bf1 {[%emt 0:02:08]} Bc6 {[%emt 0:05:18]} 19. Qa3 {[%emt 0:03:24]} Bb5 {[%emt 0:00:55]} 20. Red1 {[%emt 0:01:25]} Qb7 {[%emt 0:08:15]} 21. Bxb5 {[%emt 0:04:22]} axb5 {[%emt 0:01:33]} 22. Qa7 {[%emt 0:02:42]} b4 {[%emt 0:08:16]} 23. Ne2 {[%emt 0:08:31]} cxd4 {[%emt 0:02:42]} 24. Qxb7 {[%emt 0:07:19]} Rxb7 {[%emt 0:00:01]} 25. cxd4 {[%emt 0:03:48]} Rc2 {[%emt 0:00:09]} 26. Rd2 {[%emt 0:00:02]} Rbc7 {[%emt 0:00:27]} 27. Rad1 {[%emt 0:00:06]} R2c6 {[%emt 0:08:54]} 28. b3 {[%emt 0:00:17]} f5 {[%emt 0:03:52]} 29. exf5 {[%emt 0:00:50]} gxf5 {[%emt 0:00:02]} 30. Nf4 {[%emt 0:00:10]} Nf6 {[%emt 0:03:32]} 31. gxf5 {[%emt 0:01:29]} Ne4 {[%emt 0:00:31]} 32. Ra2 {[%emt 0:00:02]} Nc3 {[%emt 0:04:10]} 33. Ra8+ {[%emt 0:00:04]} Rc8 {[%emt 0:00:14]} 34. Rda1 {[%emt 0:00:08]} Bh6 {[%emt 0:01:30]} 35. d5 {[%emt 0:00:11]} R6c7 {[%emt 0:01:19]} 36. Ne6 {[%emt 0:00:02]} Kf7 {[%emt 0:00:34]} 37. Bxh6 {[%emt 0:00:09]} 1-0

[Event "94th Tradewise Hastings Congress"]
[Site "Hastings"]
[Date "2018.12.29"]
[Round "2"]
[White "Groffen, Hans"]
[Black "Fowler, David"]
[Result "1-0"]
[ECO "D35"]
[WhiteElo "2120"]
[BlackElo "1929"]
[Annotator "NA"]
[PlyCount "45"]
[EventDate "2018.12.28"]
[EventType "swiss"]
[EventCountry "ENG"]
[SourceTitle "playchess.com"]
[Source "ChessBase"]
[SourceQuality "1"]
[TimeControl "40/6000+30:3000+30"]

1. d4 {[%emt 0:00:00]} d5 {[%emt 0:00:00]} 2. c4 {[%emt 0:00:00]} e6 {[%emt 0:00:00]} 3. Nc3 {[%emt 0:00:00]} Nf6 {[%emt 0:00:12]} 4. cxd5 {[%emt 0:00:00]} exd5 {[%emt 0:00:06]} 5. Bg5 {[%emt 0:00:07]} c6 {[%emt 0:00:26]} 6. e3 {[%emt 0:00:12]} h6 {[%emt 0:00:48]} 7. Bh4 {[%emt 0:00:40]} Bf5 {[%emt 0:01:12]} 8. Qf3 {[%emt 0:00:32]} Bh7 {[%emt 0:00:06]} 9. Bxf6 {[%emt 0:00:16]} Qxf6 {[%emt 0:00:06]} 10. Qxf6 {[%emt 0:00:06]} gxf6 {[%emt 0:00:04]} 11. Nge2 {[%emt 0:01:41]} Bd6 {[%emt 0:03:32]} 12. Ng3 {[%emt 0:00:48]} Nd7 {[%emt 0:07:54]} 13. O-O-O {[%emt 0:02:49]} O-O-O {[%emt 0:05:34]} 14. Bd3 {[%emt 0:01:25]} Bxd3 {[%emt 0:07:24]} 15. Rxd3 {[%emt 0:00:07]} Rhg8 {[%emt 0:03:35]} 16. Nf5 {[%emt 0:04:01]} Nb6 {[%emt 0:01:59]} 17. Nxh6 {[%emt 0:03:24]} Rxg2 {[%emt 0:02:53]} 18. Nxf7 {[%emt 0:00:18]} Rd7 {[%emt 0:00:11]} 19. Nxd6+ {[%emt 0:00:39]} Rxd6 {[%emt 0:00:04]} 20. Rd2 {[%emt 0:05:58]} Nc4 {[%emt 0:05:48]} 21. Rc2 {[%emt 0:01:34]} Re6 {[%emt 0:04:19]} 22. b3 {[%emt 0:00:13]} Nd6 {[%emt 0:00:14]} 23. Nxd5 {[%emt 0:00:17]} 1-0

[Event "94th Tradewise Hastings Congress"]
[Site "Hastings"]
[Date "2018.12.29"]
[Round "2"]
[White "Snape, Ian L"]
[Black "Song, Jinwoo"]
[Result "1-0"]
[ECO "A52"]
[WhiteElo "2112"]
[BlackElo "1907"]
[Annotator "NA"]
[PlyCount "59"]
[EventDate "2018.12.28"]
[EventType "swiss"]
[EventCountry "ENG"]
[SourceTitle "playchess.com"]
[Source "ChessBase"]
[SourceQuality "1"]
[TimeControl "40/6000+30:3000+30"]

1. d4 {[%emt 0:00:00]} Nf6 {[%emt 0:00:00]} 2. c4 {[%emt 0:00:00]} e5 {[%emt 0:00:00]} 3. dxe5 {[%emt 0:00:00]} Ng4 {[%emt 0:00:00]} 4. e3 {[%emt 0:00:29]} Nxe5 {[%emt 0:02:29]} 5. f4 {[%emt 0:00:12]} Bb4+ {[%emt 0:01:16]} 6. Bd2 {[%emt 0:00:22]} Bxd2+ {[%emt 0:01:08]} 7. Qxd2 {[%emt 0:00:23]} Nec6 {[%emt 0:00:16]} 8. Nf3 {[%emt 0:00:53]} O-O {[%emt 0:03:16]} 9. Bd3 {[%emt 0:00:14]} a5 {[%emt 0:02:36]} 10. Nc3 {[%emt 0:01:17]} Na6 {[%emt 0:01:40]} 11. Rd1 {[%emt 0:03:25]} d6 {[%emt 0:00:58]} 12. O-O {[%emt 0:01:04]} Nc5 {[%emt 0:03:25]} 13. Bb1 {[%emt 0:01:43]} Be6 {[%emt 0:12:36]} 14. Nd5 {[%emt 0:03:09]} Nb4 {[%emt 0:10:57]} 15. a3 {[%emt 0:10:30]} Nxd5 {[%emt 0:01:53]} 16. cxd5 {[%emt 0:00:08]} Bg4 {[%emt 0:02:03]} 17. b4 {[%emt 0:00:34]} axb4 {[%emt 0:01:48]} 18. axb4 {[%emt 0:00:08]} Na4 {[%emt 0:00:21]} 19. Rc1 {[%emt 0:04:37]} Bxf3 {[%emt 0:01:32]} 20. Rxf3 {[%emt 0:00:22]} f5 {[%emt 0:02:59]} 21. e4 {[%emt 0:01:15]} fxe4 {[%emt 0:00:27]} 22. Bxe4 {[%emt 0:00:11]} Rf7 {[%emt 0:01:26]} 23. Qd3 {[%emt 0:18:05]} Qh4 {[%emt 0:15:47]} 24. Bf5 {[%emt 0:05:30]} Nb2 {[%emt 0:16:42]} 25. Qc2 {[%emt 0:06:41]} Rxf5 {[%emt 0:00:56]} 26. Qxf5 {[%emt 0:00:33]} Re8 {[%emt 0:02:04]} 27. Rxc7 {[%emt 0:07:11]} Qe1+ {[%emt 0:02:04]} 28. Rf1 {[%emt 0:00:04]} Qe3+ {[%emt 0:00:40]} 29. Kh1 {[%emt 0:00:06]} Rf8 {[%emt 0:00:28]} 30. Qe6+ {[%emt 0:01:00]} 1-0

[Event "94th Tradewise Hastings Congress"]
[Site "Hastings"]
[Date "2018.12.29"]
[Round "2"]
[White "Brown, Thomas"]
[Black "Kearsley, Raymond J"]
[Result "1-0"]
[ECO "D06"]
[WhiteElo "2068"]
[BlackElo "1579"]
[Annotator "NA"]
[PlyCount "51"]
[EventDate "2018.12.28"]
[EventType "swiss"]
[EventCountry "ENG"]
[SourceTitle "playchess.com"]
[Source "ChessBase"]
[SourceQuality "1"]
[TimeControl "40/6000+30:3000+30"]

1. d4 {[%emt 0:00:00]} d5 {[%emt 0:00:00]} 2. Nf3 {[%emt 0:00:01]} Bf5 {[%emt 0:00:04]} 3. c4 {[%emt 0:00:21]} e6 {[%emt 0:00:13]} 4. Nc3 {[%emt 0:00:36]} Nf6 {[%emt 0:00:21]} 5. Bg5 {[%emt 0:00:25]} Nc6 {[%emt 0:06:52]} 6. cxd5 {[%emt 0:03:41]} exd5 {[%emt 0:01:31]} 7. Bxf6 {[%emt 0:04:39]} Qxf6 {[%emt 0:02:02]} 8. Nxd5 {[%emt 0:02:16]} Qd6 {[%emt 0:02:00]} 9. Nc3 {[%emt 0:04:06]} Qb4 {[%emt 0:02:35]} 10. Qd2 {[%emt 0:04:43]} O-O-O {[%emt 0:01:47]} 11. e3 {[%emt 0:00:55]} f6 {[%emt 0:03:52]} 12. Be2 {[%emt 0:15:07]} g5 {[%emt 0:01:08]} 13. a3 {[%emt 0:08:38]} Qb3 {[%emt 0:02:28]} 14. Bd3 {[%emt 0:02:21]} Bg4 {[%emt 0:04:21]} 15. Qc2 {[%emt 0:03:19]} Qf7 {[%emt 0:03:34]} 16. Bf5+ {[%emt 0:02:33]} Bxf5 {[%emt 0:01:35]} 17. Qxf5+ {[%emt 0:00:06]} Kb8 {[%emt 0:00:45]} 18. O-O {[%emt 0:04:43]} Rg8 {[%emt 0:03:51]} 19. Ne5 {[%emt 0:03:39]} Nxe5 {[%emt 0:00:28]} 20. dxe5 {[%emt 0:00:04]} Bg7 {[%emt 0:01:38]} 21. e6 {[%emt 0:04:49]} Qg6 {[%emt 0:02:10]} 22. e4 {[%emt 0:04:18]} c6 {[%emt 0:03:23]} 23. Rad1 {[%emt 0:03:53]} Rge8 {[%emt 0:04:15]} 24. Rxd8+ {[%emt 0:15:42]} Rxd8 {[%emt 0:00:18]} 25. e7 {[%emt 0:00:17]} Rd6 {[%emt 0:04:10]} 26. Qxg6 {[%emt 0:00:59]} 1-0

[Event "94th Tradewise Hastings Congress"]
[Site "Hastings"]
[Date "2018.12.29"]
[Round "2"]
[White "Miller, Dominic"]
[Black "Williams, Simon K"]
[Result "0-1"]
[ECO "C06"]
[WhiteElo "2061"]
[BlackElo "2472"]
[Annotator "ChessBase"]
[PlyCount "58"]
[EventDate "2018.12.28"]
[EventType "swiss"]
[EventCountry "ENG"]
[SourceTitle "playchess.com"]
[Source "ChessBase"]
[SourceQuality "1"]
[TimeControl "40/6000+30:3000+30"]

1. e4 {[%emt 0:00:00]} e6 {[%emt 0:00:00]} 2. d4 {[%emt 0:00:36]} d5 {[%emt 0:00:00]} 3. Nd2 {[%emt 0:00:04]} Nf6 {[%emt 0:00:19]} 4. e5 {[%emt 0:00:06]} Nfd7 {[%emt 0:00:09]} 5. Bd3 {[%emt 0:00:42]} c5 {[%emt 0:00:17]} 6. c3 {[%emt 0:00:04]} Nc6 {[%emt 0:00:10]} 7. Ne2 {[%emt 0:00:06]} cxd4 {[%emt 0:00:37]} 8. cxd4 {[%emt 0:00:05]} f6 {[%emt 0:00:12]} 9. exf6 {[%emt 0:00:09]} Nxf6 {[%emt 0:00:23]} 10. Nf3 {[%emt 0:01:21]} Bd6 {[%emt 0:00:16]} 11. O-O {[%emt 0:00:07]} Qc7 {[%emt 0:00:23]} 12. g3 {[%emt 0:01:47]} O-O {[%emt 0:01:14]} 13. Bf4 {[%emt 0:00:16]} Bd7 {[%emt 0:01:12]} 14. Rc1 {[%emt 0:03:40]} Rae8 {[%emt 0:05:52]} 15. Bb1 {[%emt 0:24:15]} Re7 {[%emt 0:02:43]} 16. Bxd6 {[%emt 0:04:25]} Qxd6 {[%emt 0:00:07]} 17. Nf4 {[%emt 0:01:28]} Ne4 {[%emt 0:11:40]} 18. Nd3 {[%emt 0:09:27]} Be8 {[%emt 0:08:03]} 19. Nde5 {[%emt 0:08:37]} Bh5 {[%emt 0:00:21]} 20. g4 {[%emt 0:00:16]} Be8 {[%emt 0:27:47]} 21. Nxc6 {[%emt 0:12:59]} Bxc6 {[%emt 0:00:05]} 22. Ne5 {[%emt 0:00:04]} Bb5 {[%emt 0:00:04]} 23. Bd3 {[%emt 0:00:05]} Qa6 {[%emt 0:00:42]} 24. Bxb5 {[%emt 0:07:41]} Qxb5 {[%emt 0:00:06]} 25. f3 {[%emt 0:00:12]} Ng5 {[%emt 0:00:42]} 26. Qd2 {[%emt 0:04:32]} Nh3+ {[%emt 0:04:53]} 27. Kh1 {[%emt 0:00:06]} Rc7 {[%emt 0:02:15]} 28. Nd3 {[%emt 0:10:56]} Rxc1 {[%emt 0:00:15]} 29. Rxc1 Qxd3 {[%emt 0:00:07]} 0-1

[Event "94th Tradewise Hastings Congress"]
[Site "Hastings"]
[Date "2018.12.29"]
[Round "2"]
[White "Nettleton, Charlie B"]
[Black "Peek, Marcel"]
[Result "1/2-1/2"]
[ECO "A06"]
[WhiteElo "2059"]
[BlackElo "2293"]
[Annotator "NA"]
[PlyCount "86"]
[EventDate "2018.12.28"]
[EventType "swiss"]
[EventCountry "ENG"]
[SourceTitle "playchess.com"]
[Source "ChessBase"]
[SourceQuality "1"]
[TimeControl "40/6000+30:3000+30"]

1. Nf3 {[%emt 0:00:00]} d5 {[%emt 0:00:00]} 2. e3 {[%emt 0:00:33]} Nc6 {[%emt 0:03:26]} 3. b3 {[%emt 0:02:19]} Bg4 {[%emt 0:05:23]} 4. h3 {[%emt 0:01:19]} Bxf3 {[%emt 0:01:02]} 5. Qxf3 {[%emt 0:00:12]} Nf6 {[%emt 0:02:31]} 6. Bb2 {[%emt 0:00:23]} e6 {[%emt 0:05:52]} 7. Bb5 {[%emt 0:04:12]} Be7 {[%emt 0:03:46]} 8. Bxc6+ {[%emt 0:01:15]} bxc6 {[%emt 0:00:06]} 9. O-O {[%emt 0:00:27]} O-O {[%emt 0:00:48]} 10. d3 {[%emt 0:03:11]} a5 {[%emt 0:10:00]} 11. a4 {[%emt 0:10:36]} Nd7 {[%emt 0:01:43]} 12. Nd2 {[%emt 0:04:14]} f5 {[%emt 0:10:19]} 13. Qe2 {[%emt 0:16:17]} Bf6 {[%emt 0:03:17]} 14. Ba3 {[%emt 0:07:10]} Bxa1 {[%emt 0:17:53]} 15. Bxf8 {[%emt 0:00:09]} Bb2 {[%emt 0:00:09]} 16. Rb1 {[%emt 0:00:09]} Qxf8 {[%emt 0:08:43]} 17. Rxb2 {[%emt 0:00:03]} Qc5 {[%emt 0:00:46]} 18. Nf3 {[%emt 0:08:41]} Re8 {[%emt 0:12:36]} 19. Qd2 {[%emt 0:09:07]} e5 {[%emt 0:07:30]} 20. d4 {[%emt 0:05:28]} Qb6 {[%emt 0:00:31]} 21. dxe5 {[%emt 0:02:53]} Nxe5 {[%emt 0:01:03]} 22. Nxe5 {[%emt 0:06:10]} Rxe5 {[%emt 0:00:04]} 23. c3 {[%emt 0:01:47]} Re4 {[%emt 0:00:52]} 24. b4 {[%emt 0:01:18]} g6 {[%emt 0:01:13]} 25. bxa5 {[%emt 0:01:46]} Qxa5 {[%emt 0:00:34]} 26. Rb4 {[%emt 0:06:21]} Rxb4 {[%emt 0:03:39]} 27. cxb4 {[%emt 0:00:03]} Qxa4 {[%emt 0:00:07]} 28. Qd4 {[%emt 0:00:31]} Qc2 {[%emt 0:05:42]} 29. Qf6 {[%emt 0:01:32]} Qb1+ {[%emt 0:01:12]} 30. Kh2 {[%emt 0:00:14]} Qxb4 {[%emt 0:00:09]} 31. Qd8+ {[%emt 0:01:31]} Qf8 {[%emt 0:00:23]} 32. Qxc7 {[%emt 0:00:09]} Qf6 {[%emt 0:00:53]} 33. g3 {[%emt 0:01:55]} g5 {[%emt 0:00:15]} 34. Kg2 {[%emt 0:05:08]} h6 {[%emt 0:01:26]} 35. Qc8+ {[%emt 0:02:30]} Kf7 {[%emt 0:01:22]} 36. Qd7+ {[%emt 0:00:08]} Kf8 {[%emt 0:00:19]} 37. Qc8+ {[%emt 0:00:19]} Ke7 {[%emt 0:01:26]} 38. Qc7+ {[%emt 0:00:19]} Ke8 {[%emt 0:00:45]} 39. Qc8+ {[%emt 0:00:07]} Ke7 {[%emt 0:00:37]} 40. Qc7+ {[%emt 0:00:08]} Kf8 {[%emt 0:00:06]} 41. Qc8+ {[%emt 0:50:10]} Kg7 {[%emt 0:51:06]} 42. Qd7+ {[%emt 0:00:09]} Kg6 {[%emt 0:00:00]} 43. Qe8+ {[%emt 0:00:00]} Kg7 {[%emt 0:00:08]} 1/2-1/2

[Event "94th Tradewise Hastings Congress"]
[Site "Hastings"]
[Date "2018.12.29"]
[Round "2"]
[White "Comellas Blanchart, Jordi"]
[Black "Moore, Graham J"]
[Result "1/2-1/2"]
[ECO "E04"]
[WhiteElo "2055"]
[BlackElo "2235"]
[Annotator "NA"]
[PlyCount "107"]
[EventDate "2018.12.28"]
[EventType "swiss"]
[EventCountry "ENG"]
[SourceTitle "playchess.com"]
[Source "ChessBase"]
[SourceQuality "1"]
[TimeControl "40/6000+30:3000+30"]

1. d4 {[%emt 0:00:00]} Nf6 {[%emt 0:00:00]} 2. c4 {[%emt 0:00:00]} e6 {[%emt 0:00:00]} 3. g3 {[%emt 0:00:00]} d5 {[%emt 0:00:09]} 4. Nf3 {[%emt 0:00:00]} dxc4 {[%emt 0:00:21]} 5. Bg2 {[%emt 0:00:13]} a6 {[%emt 0:00:12]} 6. O-O {[%emt 0:04:48]} Nc6 {[%emt 0:00:07]} 7. e3 {[%emt 0:02:04]} Bd7 {[%emt 0:06:35]} 8. Qe2 {[%emt 0:03:18]} Bd6 {[%emt 0:00:24]} 9. Qxc4 {[%emt 0:03:54]} O-O {[%emt 0:00:44]} 10. Nc3 {[%emt 0:04:13]} b5 {[%emt 0:03:34]} 11. Qd3 {[%emt 0:08:48]} Rb8 {[%emt 0:06:25]} 12. e4 {[%emt 0:05:41]} b4 {[%emt 0:03:45]} 13. Ne2 {[%emt 0:03:07]} e5 {[%emt 0:00:57]} 14. Rd1 {[%emt 0:17:21]} Qc8 {[%emt 0:34:34]} 15. dxe5 {[%emt 0:21:38]} Nxe5 {[%emt 0:00:22]} 16. Nxe5 {[%emt 0:01:23]} Bxe5 {[%emt 0:02:56]} 17. Qc2 {[%emt 0:05:27]} Qe8 {[%emt 0:14:12]} 18. Rb1 {[%emt 0:02:18]} Bb5 {[%emt 0:05:32]} 19. Be3 {[%emt 0:05:53]} Qe6 {[%emt 0:02:20]} 20. b3 {[%emt 0:06:12]} Rfd8 {[%emt 0:04:25]} 21. Nd4 {[%emt 0:01:08]} Bxd4 {[%emt 0:02:08]} 22. Bxd4 {[%emt 0:00:45]} c6 {[%emt 0:00:07]} 23. Bc5 {[%emt 0:03:18]} a5 {[%emt 0:01:57]} 24. Rxd8+ {[%emt 0:00:34]} Rxd8 {[%emt 0:00:09]} 25. Rd1 {[%emt 0:00:10]} Rxd1+ {[%emt 0:01:40]} 26. Qxd1 {[%emt 0:00:02]} h5 {[%emt 0:01:02]} 27. Qd4 {[%emt 0:04:46]} Nd7 {[%emt 0:02:02]} 28. Bd6 {[%emt 0:00:46]} f6 {[%emt 0:00:43]} 29. Bc7 {[%emt 0:04:12]} c5 {[%emt 0:07:24]} 30. Qd5 {[%emt 0:01:08]} Qxd5 {[%emt 0:00:23]} 31. exd5 {[%emt 0:00:02]} a4 {[%emt 0:00:12]} 32. Bd6 {[%emt 0:01:27]} axb3 {[%emt 0:02:18]} 33. axb3 {[%emt 0:00:02]} Bd3 {[%emt 0:01:47]} 34. Bf1 {[%emt 0:01:09]} Be4 {[%emt 0:03:03]} 35. Bb5 {[%emt 0:00:15]} Ne5 {[%emt 0:00:19]} 36. Bxc5 {[%emt 0:00:47]} Bxd5 {[%emt 0:01:01]} 37. Bxb4 {[%emt 0:00:27]} Nf3+ {[%emt 0:00:14]} 38. Kf1 {[%emt 0:00:15]} Nxh2+ {[%emt 0:00:25]} 39. Ke2 {[%emt 0:00:36]} Bxb3 {[%emt 0:00:19]} 40. Bc6 {[%emt 0:00:44]} Bc4+ {[%emt 0:01:38]} 41. Kd2 {[%emt 0:07:07]} g5 {[%emt 0:01:03]} 42. Bd6 {[%emt 0:02:41]} Kg7 {[%emt 0:00:33]} 43. Be8 {[%emt 0:03:18]} Bf7 {[%emt 0:02:48]} 44. Bb5 {[%emt 0:05:15]} Bd5 {[%emt 0:02:42]} 45. Bd7 {[%emt 0:01:33]} Nf3+ {[%emt 0:01:23]} 46. Ke3 {[%emt 0:00:13]} h4 {[%emt 0:03:38]} 47. Bg4 {[%emt 0:07:14]} Nh2 {[%emt 0:04:55]} 48. Bh3 {[%emt 0:07:37]} Nf3 {[%emt 0:18:17]} 49. Bg4 {[%emt 0:00:38]} Ne5 {[%emt 0:03:10]} 50. Bxe5 {[%emt 0:00:35]} fxe5 {[%emt 0:00:05]} 51. gxh4 {[%emt 0:00:09]} gxh4 {[%emt 0:00:06]} 52. f4 {[%emt 0:00:19]} exf4+ {[%emt 0:01:56]} 53. Kxf4 {[%emt 0:00:08]} h3 {[%emt 0:00:03]} 54. Bxh3 {[%emt 0:00:09]} 1/2-1/2

[Event "94th Tradewise Hastings Congress"]
[Site "Hastings"]
[Date "2018.12.29"]
[Round "2"]
[White "Rayner, Francis"]
[Black "Royal, Shreyas"]
[Result "1-0"]
[ECO "E67"]
[WhiteElo "2048"]
[BlackElo "1930"]
[Annotator "NA"]
[PlyCount "111"]
[EventDate "2018.12.28"]
[EventType "swiss"]
[EventCountry "ENG"]
[SourceTitle "playchess.com"]
[Source "ChessBase"]
[SourceQuality "1"]
[TimeControl "40/6000+30:3000+30"]

1. c4 {[%emt 0:07:55]} Nf6 {[%emt 0:00:23]} 2. Nf3 {[%emt 0:00:37]} g6 {[%emt 0:00:48]} 3. g3 {[%emt 0:02:17]} Bg7 {[%emt 0:00:50]} 4. Bg2 {[%emt 0:00:10]} O-O {[%emt 0:00:44]} 5. O-O {[%emt 0:00:17]} d6 {[%emt 0:01:01]} 6. d4 {[%emt 0:00:44]} Nbd7 {[%emt 0:01:25]} 7. Qc2 {[%emt 0:02:22]} e5 {[%emt 0:10:21]} 8. Rd1 {[%emt 0:00:16]} Qe7 {[%emt 0:05:38]} 9. Nc3 {[%emt 0:01:40]} c6 {[%emt 0:03:45]} 10. b3 {[%emt 0:00:55]} e4 {[%emt 0:07:52]} 11. Ng5 {[%emt 0:00:31]} d5 {[%emt 0:00:32]} 12. cxd5 {[%emt 0:01:56]} cxd5 {[%emt 0:01:02]} 13. Nb5 {[%emt 0:00:34]} Ne8 {[%emt 0:10:39]} 14. Nh3 {[%emt 0:03:46]} a6 {[%emt 0:03:28]} 15. Ba3 {[%emt 0:02:28]} Qd8 {[%emt 0:00:08]} 16. Nc3 {[%emt 0:03:04]} Ndf6 {[%emt 0:00:50]} 17. Bxf8 {[%emt 0:00:30]} Bxf8 {[%emt 0:00:06]} 18. Qd2 {[%emt 0:14:25]} Bf5 {[%emt 0:01:04]} 19. f3 {[%emt 0:10:54]} Bb4 {[%emt 0:09:04]} 20. a3 {[%emt 0:01:06]} Ba5 {[%emt 0:00:05]} 21. b4 {[%emt 0:03:13]} Bc7 {[%emt 0:00:06]} 22. fxe4 {[%emt 0:03:20]} dxe4 {[%emt 0:00:55]} 23. Nf2 {[%emt 0:03:22]} Nd6 {[%emt 0:01:32]} 24. e3 {[%emt 0:00:29]} Qf8 {[%emt 0:03:11]} 25. Qe2 {[%emt 0:02:10]} h5 {[%emt 0:01:10]} 26. Rac1 {[%emt 0:01:32]} Rc8 {[%emt 0:02:12]} 27. Na4 {[%emt 0:04:21]} Qh6 {[%emt 0:01:27]} 28. Re1 {[%emt 0:02:54]} Kg7 {[%emt 0:01:46]} 29. Nc5 {[%emt 0:00:35]} Bb8 {[%emt 0:01:12]} 30. a4 {[%emt 0:04:23]} Rh8 {[%emt 0:01:22]} 31. a5 {[%emt 0:01:11]} g5 {[%emt 0:02:49]} 32. Rf1 {[%emt 0:07:41]} g4 {[%emt 0:02:11]} 33. h4 {[%emt 0:07:14]} gxh3 {[%emt 0:02:33]} 34. Bxh3 {[%emt 0:00:08]} Qg6 {[%emt 0:04:35]} 35. Kh1 {[%emt 0:02:56]} Kh7 {[%emt 0:08:44]} 36. Bxf5 {[%emt 0:03:28]} Nxf5 {[%emt 0:00:16]} 37. Nfxe4 {[%emt 0:00:13]} Kg7 {[%emt 0:07:45]} 38. Qf3 {[%emt 0:01:12]} Nxg3+ {[%emt 0:02:50]} 39. Nxg3 {[%emt 0:00:12]} Bxg3 {[%emt 0:00:06]} 40. Qxf6+ {[%emt 0:03:25]} Qxf6 {[%emt 0:00:08]} 41. Rxf6 {[%emt 0:50:05]} Kxf6 {[%emt 0:50:08]} 42. Ne4+ {[%emt 0:00:03]} Kf5 {[%emt 0:00:06]} 43. Nxg3+ {[%emt 0:00:09]} Kg4 {[%emt 0:00:04]} 44. Nf1 {[%emt 0:01:06]} Kf3 {[%emt 0:00:17]} 45. Rc5 {[%emt 0:01:46]} Ke4 {[%emt 0:00:49]} 46. Re5+ {[%emt 0:02:39]} Kd3 {[%emt 0:00:05]} 47. Rf5 {[%emt 0:00:28]} Rh7 {[%emt 0:00:38]} 48. d5 {[%emt 0:02:35]} Kc4 {[%emt 0:00:09]} 49. d6 {[%emt 0:00:45]} Kxb4 {[%emt 0:00:07]} 50. d7 {[%emt 0:02:17]} Rh8 {[%emt 0:00:07]} 51. Rd5 {[%emt 0:00:00]} Rd8 {[%emt 0:00:00]} 52. Ng3 {[%emt 0:00:00]} Kc4 {[%emt 0:00:00]} 53. e4 {[%emt 0:00:00]} f6 {[%emt 0:00:00]} 54. Nf5 {[%emt 0:00:00]} Kb4 {[%emt 0:00:00]} 55. Kh2 {[%emt 0:00:00]} Kc4 {[%emt 0:00:00]} 56. Nd6+ {[%emt 0:01:02] Kxd5 [%emt 00:00:06]} 1-0

[Event "94th Tradewise Hastings Congress"]
[Site "Hastings"]
[Date "2018.12.29"]
[Round "2"]
[White "Norinkeviciute, Rasa"]
[Black "Graham, David B"]
[Result "0-1"]
[ECO "A38"]
[WhiteElo "2028"]
[BlackElo "2208"]
[Annotator "NA"]
[PlyCount "42"]
[EventDate "2018.12.28"]
[EventType "swiss"]
[EventCountry "ENG"]
[SourceTitle "playchess.com"]
[Source "ChessBase"]
[SourceQuality "1"]
[TimeControl "40/6000+30:3000+30"]

1. c4 {[%emt 0:00:00]} g6 {[%emt 0:00:00]} 2. g3 {[%emt 0:00:08]} Bg7 {[%emt 0:00:28]} 3. Nc3 {[%emt 0:00:46]} d6 {[%emt 0:00:00]} 4. Bg2 {[%emt 0:02:01]} c5 {[%emt 0:00:00]} 5. Nf3 {[%emt 0:02:00]} Nc6 {[%emt 0:00:00]} 6. d3 {[%emt 0:03:18]} Nf6 {[%emt 0:01:16]} 7. a3 {[%emt 0:03:02]} O-O {[%emt 0:01:02]} 8. O-O {[%emt 0:03:03]} h6 {[%emt 0:08:57]} 9. Rb1 {[%emt 0:00:00]} a5 {[%emt 0:00:33]} 10. Ne1 {[%emt 0:03:57]} Be6 {[%emt 0:04:30]} 11. Nd5 {[%emt 0:08:43]} Bxd5 {[%emt 0:05:07]} 12. cxd5 {[%emt 0:00:00]} Na7 {[%emt 0:03:00]} 13. b4 {[%emt 0:00:00]} Nb5 {[%emt 0:02:13]} 14. Qd2 {[%emt 0:07:15]} cxb4 {[%emt 0:01:57]} 15. axb4 {[%emt 0:00:06]} a4 {[%emt 0:00:18]} 16. Bb2 {[%emt 0:00:57]} a3 {[%emt 0:07:24]} 17. Ba1 {[%emt 0:04:32]} Qb6 {[%emt 0:03:31]} 18. Nc2 {[%emt 0:07:22]} Rfc8 19. Ne3 {[%emt 0:02:09]} Qa7 {[%emt 0:22:08]} 20. Nc4 {[%emt 0:12:08]} Rc7 {[%emt 0:30:53]} 21. Rb3 {[%emt 0:20:50]} Rac8 {[%emt 0:00:00]} 0-1